fUST/lending_fUST_20250408
["ID","MTS","AMOUNT","RATE_DAILY","PERIOD"]
[357455201,1744073442482,-500.0,0.00021917,2]
[357455202,1744073442491,-153.41894269,0.00021917,2]
[357455203,1744073442500,-524.85012501,0.00021917,2]
[357455204,1744073442509,-500.0,0.00021917,2]
[357455205,1744073442518,-1098.37,0.00021917,2]
[357455206,1744073442527,-500.0,0.00021917,2]
[357455207,1744073442537,-220.39,0.00021917,2]
[357455208,1744073442546,-500.0,0.00021917,2]
[357455209,1744073442555,-522.73491292,0.00021917,2]
[357455210,1744073442564,-500.0,0.00021917,2]
[357455211,1744073442574,-501.15011784,0.00021973,2]
[357455212,1744073442584,-182.28058582,0.00021973,2]
[357455213,1744073442594,-500.0,0.00021973,2]
[357455214,1744073442603,-500.0,0.00021973,2]
[357455215,1744073442614,-500.0,0.00021973,2]
[357455216,1744073442623,-500.0,0.00021973,2]
[357455217,1744073442634,-500.0,0.00021973,2]
[357455218,1744073442643,-339.44132475,0.00021973,2]
[357455219,1744073442652,-500.0,0.00021973,2]
[357455220,1744073442662,-500.0,0.00021973,2]
[357455221,1744073442672,-500.0,0.00021973,2]
[357455222,1744073442682,-500.0,0.00021973,2]
[357455223,1744073442691,-358.37469545,0.00022091,2]
[357455224,1744073442700,-641.3390787,0.00022173,2]
[357455225,1744073442710,-500.0,0.00022173,2]
[357455226,1744073442720,-500.0,0.00022173,2]
[357455227,1744073442729,-613.63380038,0.00022173,2]
[357455228,1744073442739,-501.59857376,0.00022173,2]
[357455229,1744073442750,-500.0,0.00022173,2]
[357455230,1744073442760,-500.0,0.00022173,2]
[357455231,1744073442770,-501.01755725,0.00022173,2]
[357455232,1744073442779,-301.61256696,0.00022173,2]
[357455233,1744073442789,-500.0,0.00022173,2]
[357455234,1744073442799,-500.0,0.00022173,2]
[357455235,1744073442808,-500.0,0.00022173,2]
[357455236,1744073442818,-500.0,0.00022173,2]
[357455237,1744073442827,-500.0,0.00022173,2]
[357455239,1744073442837,-534.1295019,0.00022173,2]
[357455240,1744073442847,-500.0,0.00022173,2]
[357455241,1744073442856,-500.0,0.00022173,2]
[357455242,1744073442866,-502.85385566,0.00022173,2]
[357455243,1744073442876,-594.95,0.00022191,2]
[357455244,1744073442885,-500.0,0.00022191,2]
[357455245,1744073442895,-500.0,0.00022191,2]
[357455246,1744073442905,-500.0,0.00022191,2]
[357455247,1744073442915,-507.25,0.00022191,2]
[357455248,1744073442929,-500.0,0.00022191,2]
[357455249,1744073442938,-500.0,0.00022191,2]
[357455250,1744073442948,-500.0,0.00022191,2]
[357455251,1744073442957,-540.43190331,0.00022191,2]
[357455252,1744073442969,-500.0,0.00022191,2]
[357455253,1744073442979,-500.0,0.00022191,2]
[357455254,1744073442989,-500.0,0.00022191,2]
[357455255,1744073442999,-500.0,0.00022191,2]
[357455256,1744073443009,-500.0,0.00022191,2]
[357455257,1744073443019,-1284.95,0.00022191,2]
[357455258,1744073443029,-500.0,0.00022191,2]
[357455259,1744073443039,-500.0,0.00022191,2]
[357455260,1744073443048,-500.0,0.00022191,2]
[357455262,1744073443058,-519.3,0.00022191,2]
[357455263,1744073443068,-500.0,0.00022191,2]
[357455264,1744073443077,-500.0,0.00022191,2]
[357455265,1744073443087,-500.0,0.00022191,2]
[357455266,1744073443097,-516.63648851,0.00022191,2]
[357455267,1744073443107,-515.54,0.00022191,2]
[357455268,1744073443117,-774.11,0.00022191,2]
[357455269,1744073443127,-500.0,0.00022191,2]
[357455270,1744073443137,-500.0,0.00022191,2]
[357455271,1744073443146,-500.0,0.00022191,2]
[357455272,1744073443156,-500.0,0.00022191,2]
[357455273,1744073443166,-500.0,0.00022191,2]
[357455274,1744073443175,-500.0,0.00022191,2]
[357455275,1744073443186,-500.0,0.00022191,2]
[357455276,1744073443195,-265.98706573,0.00022191,2]
[357455277,1744073443206,-500.0,0.00022191,2]
[357455278,1744073443216,-500.0,0.00022191,2]
[357455279,1744073443226,-500.0,0.00022191,2]
[357455280,1744073443236,-500.0,0.00022191,2]
[357455281,1744073443245,-500.0,0.00022191,2]
[357455282,1744073443255,-500.0,0.00022191,2]
[357455283,1744073443265,-500.0,0.00022191,2]
[357455284,1744073443275,-500.0,0.00022191,2]
[357455285,1744073443284,-210.19736747,0.00022191,2]
[357455286,1744073443294,-500.0,0.00022191,2]
[357455287,1744073443304,-500.0,0.00022191,2]
[357455288,1744073443313,-500.0,0.00022191,2]
[357455289,1744073443323,-500.0,0.00022191,2]
[357455290,1744073443333,-500.0,0.00022191,2]
[357455291,1744073443343,-500.0,0.00022191,2]
[357455293,1744073443353,-500.0,0.00022191,2]
[357455294,1744073443362,-500.0,0.00022191,2]
[357455295,1744073443372,-500.0,0.00022191,2]
[357455296,1744073443382,-365.07874534,0.00022191,2]
[357455297,1744073443392,-500.0,0.00022191,2]
[357455298,1744073443402,-500.0,0.00022191,2]
[357455299,1744073443412,-500.0,0.00022191,2]
[357455300,1744073443422,-500.0,0.00022191,2]
[357455301,1744073443432,-500.0,0.00022191,2]
[357455302,1744073443442,-500.0,0.00022191,2]
[357455303,1744073443452,-500.0,0.00022191,2]
[357455304,1744073443461,-637.58,0.00022191,2]
[357455305,1744073443470,-500.0,0.00022191,2]
[357455306,1744073443481,-619.99,0.00022191,2]
[357455307,1744073443490,-564.31188799,0.00022191,2]
[357455308,1744073443500,-500.0,0.00022191,2]
[357455309,1744073443510,-500.0,0.00022191,2]
[357455310,1744073443519,-500.0,0.00022191,2]
[357455311,1744073443529,-500.0,0.00022191,2]
[357455312,1744073443539,-500.0,0.00022191,2]
[357455313,1744073443548,-500.0,0.00022191,2]
[357455314,1744073443557,-500.0,0.00022191,2]
[357455315,1744073443566,-500.0,0.00022191,2]
[357455316,1744073443576,-551.52,0.00022191,2]
[357455317,1744073443587,-500.0,0.00022191,2]
[357455318,1744073443596,-500.0,0.00022191,2]
[357455319,1744073443606,-762.18,0.00022191,2]
[357455320,1744073443616,-500.0,0.00022191,2]
[357455321,1744073443626,-500.0,0.00022191,2]
[357455322,1744073443636,-610.61,0.00022191,2]
[357455323,1744073443646,-500.0,0.00022191,2]
[357455324,1744073443658,-500.0,0.00022191,2]
[357455325,1744073443668,-798.41,0.00022191,2]
[357455326,1744073443678,-666.56,0.00022191,2]
[357455327,1744073443687,-500.0,0.00022191,2]
[357455328,1744073443696,-568.42,0.00022191,2]
[357455329,1744073443706,-500.0,0.00022191,2]
[357455330,1744073443717,-500.0,0.00022191,2]
[357455331,1744073443726,-500.0,0.00022191,2]
[357455332,1744073443737,-500.0,0.00022191,2]
[357455333,1744073443748,-595.32,0.00022191,2]
[357455334,1744073443759,-500.0,0.00022191,2]
[357455335,1744073443770,-1478.81,0.00022191,2]
[357455336,1744073443917,-500.0,0.00022191,2]
[357455337,1744073443931,-500.0,0.00022191,2]
[357455338,1744073443943,-523.17,0.00022191,2]
[357455339,1744073443954,-500.0,0.00022191,2]
[357455340,1744073443965,-500.0,0.00022191,2]
[357455341,1744073443976,-500.0,0.00022191,2]
[357455342,1744073443986,-1266.69,0.00022191,2]
[357455343,1744073443996,-500.0,0.00022191,2]
[357455344,1744073444007,-500.0,0.00022191,2]
[357455345,1744073444017,-500.0,0.00022191,2]
[357455346,1744073444027,-1197.93,0.00022191,2]
[357455347,1744073444037,-500.0,0.00022191,2]
[357455348,1744073444060,-500.0,0.00022191,2]
[357455349,1744073444074,-528.61,0.00022191,2]
[357455350,1744073444084,-878.01,0.00022191,2]
[357455351,1744073444095,-500.0,0.00022191,2]
[357455352,1744073444105,-500.0,0.00022191,2]
[357455353,1744073444115,-500.0,0.00022191,2]
[357455354,1744073444124,-500.0,0.00022191,2]
[357455355,1744073444135,-500.0,0.00022191,2]
[357455356,1744073444144,-500.0,0.00022191,2]
[357455357,1744073444154,-500.0,0.00022191,2]
[357455358,1744073444163,-500.0,0.00022191,2]
[357455359,1744073444173,-500.0,0.00022191,2]
[357455360,1744073444182,-993.51,0.00022191,2]
[357455361,1744073444191,-1465.53,0.00022191,2]
[357455362,1744073444200,-500.0,0.00022191,2]
[357455363,1744073444211,-500.0,0.00022191,2]
[357455364,1744073444220,-500.0,0.00022191,2]
[357455365,1744073444230,-500.0,0.00022191,2]
[357455366,1744073444239,-500.0,0.00022191,2]
[357455367,1744073444248,-500.0,0.00022191,2]
[357455368,1744073444257,-500.0,0.00022191,2]
[357455369,1744073444266,-500.0,0.00022191,2]
[357455370,1744073444276,-545.8,0.00022191,2]
[357455371,1744073444286,-500.0,0.00022191,2]
[357455372,1744073444295,-500.0,0.00022191,2]
[357455373,1744073444305,-500.0,0.00022191,2]
[357455374,1744073444315,-500.0,0.00022191,2]
[357455375,1744073444325,-500.0,0.00022191,2]
[357455376,1744073444334,-689.47,0.00022191,2]
[357455377,1744073444344,-500.0,0.00022191,2]
[357455378,1744073444353,-591.84,0.00022191,2]
[357455379,1744073444363,-500.0,0.00022191,2]
[357455380,1744073444373,-500.0,0.00022191,2]
[357455381,1744073444384,-1000.21,0.00022191,2]
[357455382,1744073444394,-500.0,0.00022191,2]
[357455383,1744073444404,-500.0,0.00022191,2]
[357455384,1744073444414,-500.0,0.00022191,2]
[357455385,1744073444424,-1104.26,0.00022191,2]
[357455386,1744073444435,-518.15,0.00022191,2]
[357455387,1744073444445,-500.0,0.00022191,2]
[357455388,1744073444455,-500.0,0.00022191,2]
[357455389,1744073444466,-500.0,0.00022191,2]
[357455390,1744073444477,-500.0,0.00022191,2]
[357455391,1744073444488,-500.0,0.00022191,2]
[357455392,1744073444498,-500.0,0.00022191,2]
[357455393,1744073444509,-500.0,0.00022191,2]
[357455394,1744073444519,-500.0,0.00022191,2]
[357455395,1744073444530,-500.0,0.00022191,2]
[357455396,1744073444540,-500.0,0.00022191,2]
[357455397,1744073444550,-500.0,0.00022191,2]
[357455398,1744073444560,-500.0,0.00022191,2]
[357455399,1744073444569,-500.0,0.00022191,2]
[357455400,1744073444579,-500.0,0.00022191,2]
[357455401,1744073444589,-500.0,0.00022191,2]
[357455402,1744073444598,-500.0,0.00022191,2]
[357455403,1744073444608,-500.0,0.00022191,2]
[357455404,1744073444618,-500.0,0.00022191,2]
[357455405,1744073444627,-1404.5,0.00022191,2]
[357455406,1744073444639,-522.25,0.00022191,2]
[357455407,1744073444649,-500.0,0.00022191,2]
[357455408,1744073444660,-1550.56,0.00022191,2]
[357455409,1744073444669,-500.0,0.00022191,2]
[357455410,1744073444679,-500.0,0.00022191,2]
[357455411,1744073444688,-559.21,0.00022191,2]
[357455412,1744073444700,-286.28,0.00022191,2]
[357455413,1744073444712,-1304.88,0.00022191,2]
[357455414,1744073444722,-500.0,0.00022191,2]
[357455415,1744073444732,-2906.86,0.00022191,2]
[357455416,1744073444742,-567.46,0.00022191,2]
[357455417,1744073444751,-636.08,0.00022191,2]
[357455418,1744073444761,-500.0,0.00022191,2]
[357455419,1744073444771,-500.0,0.00022191,2]
[357455420,1744073444781,-1332.6,0.00022191,2]
[357455421,1744073444792,-500.0,0.00022191,2]
[357455422,1744073444802,-500.0,0.00022191,2]
[357455423,1744073444812,-500.0,0.00022191,2]
[357455424,1744073444822,-500.0,0.00022191,2]
[357455425,1744073444832,-2435.82,0.00022191,2]
[357455426,1744073444841,-564.44,0.00022191,2]
[357455427,1744073444851,-816.67,0.00022191,2]
[357455428,1744073444861,-500.0,0.00022191,2]
[357455429,1744073444871,-500.0,0.00022191,2]
[357455430,1744073444883,-2284.41,0.00022191,2]
[357455431,1744073444892,-500.0,0.00022191,2]
[357455432,1744073444903,-539.99,0.00022191,2]
[357455433,1744073444912,-500.0,0.00022191,2]
[357455434,1744073444923,-774.84,0.00022191,2]
[357455435,1744073444938,-1559.28,0.00022191,2]
[357455436,1744073444948,-1168.9,0.00022191,2]
[357455437,1744073444958,-2749.42,0.00022191,2]
[357455438,1744073444968,-500.0,0.00022191,2]
[357455439,1744073444977,-500.0,0.00022191,2]
[357455440,1744073444986,-500.0,0.00022191,2]
[357455441,1744073444996,-1353.57,0.00022191,2]
[357455442,1744073445006,-500.0,0.00022191,2]
[357455443,1744073445016,-500.0,0.00022191,2]
[357455444,1744073445026,-500.0,0.00022191,2]
[357455445,1744073445035,-1377.29,0.00022191,2]
[357455446,1744073445045,-200.0,0.00022191,2]
[357455448,1744073445055,-500.0,0.00022191,2]
[357455450,1744073445065,-616.31503637,0.00022191,2]
[357455451,1744073445075,-500.0,0.00022191,2]
[357455452,1744073445084,-500.0,0.00022191,2]
[357455453,1744073445105,-2417.25,0.00022191,2]
[357455454,1744073445117,-5291.2,0.00022191,2]
[357455455,1744073445129,-1100.81,0.00022191,2]
[357455456,1744073445144,-500.0,0.00022191,2]
[357455457,1744073445155,-500.0,0.00022191,2]
[357455458,1744073445166,-3065.26,0.00022191,2]
[357455459,1744073445177,-500.0,0.00022191,2]
[357455460,1744073445187,-500.0,0.00022191,2]
[357455461,1744073445198,-500.0,0.00022191,2]
[357455462,1744073445208,-1661.41,0.00022191,2]
[357455463,1744073445219,-957.37,0.00022191,2]
[357455464,1744073445229,-500.0,0.00022191,2]
[357455465,1744073445241,-500.0,0.00022191,2]
[357455466,1744073445251,-500.0,0.00022191,2]
[357455467,1744073445261,-500.0,0.00022191,2]
[357455468,1744073445271,-500.0,0.00022191,2]
[357455469,1744073445281,-500.0,0.00022191,2]
[357455470,1744073445292,-1814.5,0.00022191,2]
[357455471,1744073445303,-1937.54,0.00022191,2]
[357455472,1744073445313,-631.45,0.00022191,2]
[357455473,1744073445323,-500.0,0.00022191,2]
[357455474,1744073445333,-500.0,0.00022191,2]
[357455475,1744073445343,-500.0,0.00022191,2]
[357455476,1744073445353,-500.0,0.00022191,2]
[357455477,1744073445364,-1807.0,0.00022191,2]
[357455478,1744073445374,-1563.99,0.00022191,2]
[357455479,1744073445386,-500.0,0.00022191,2]
[357455480,1744073445396,-765.88,0.00022191,2]
[357455481,1744073445408,-500.0,0.00022191,2]
[357455482,1744073445418,-500.0,0.00022191,2]
[357455483,1744073445428,-500.0,0.00022191,2]
[357455484,1744073445438,-500.0,0.00022191,2]
[357455485,1744073445448,-500.0,0.00022191,2]
[357455486,1744073445458,-500.0,0.00022191,2]
[357455487,1744073445468,-1094.87,0.00022191,2]
[357455488,1744073445479,-500.0,0.00022191,2]
[357455489,1744073445489,-500.0,0.00022191,2]
[357455490,1744073445499,-844.05,0.00022191,2]
[357455491,1744073445509,-500.0,0.00022191,2]
[357455492,1744073445520,-1239.2,0.00022191,2]
[357455493,1744073445530,-500.0,0.00022191,2]
[357455494,1744073445541,-500.0,0.00022191,2]
[357455495,1744073445551,-993.95,0.00022191,2]
[357455496,1744073445561,-500.0,0.00022191,2]
[357455497,1744073445571,-1205.59,0.00022191,2]
[357455498,1744073445581,-1288.17,0.00022191,2]
[357455499,1744073445591,-500.0,0.00022191,2]
[357455500,1744073445602,-500.0,0.00022191,2]
[357455501,1744073445613,-500.0,0.00022191,2]
[357455502,1744073445623,-500.0,0.00022191,2]
[357455503,1744073445634,-500.0,0.00022191,2]
[357455504,1744073445644,-1146.31,0.00022191,2]
[357455505,1744073445654,-500.0,0.00022191,2]
[357455506,1744073445665,-8516.27,0.00022191,2]
[357455507,1744073445675,-515.27,0.00022191,2]
[357455508,1744073445684,-500.0,0.00022191,2]
[357455509,1744073445694,-512.8966216,0.00022191,2]
[357455510,1744073445704,-500.0,0.00022191,2]
[357455511,1744073445719,-808.45,0.00022191,2]
[357455512,1744073445729,-500.0,0.00022191,2]
[357455513,1744073445739,-2424.22,0.00022191,2]
[357455514,1744073445749,-500.0,0.00022191,2]
[357455515,1744073445762,-1749.01,0.00022191,2]
[357455516,1744073445773,-1135.59,0.00022191,2]
[357455517,1744073445782,-523.31,0.00022191,2]
[357455518,1744073445792,-500.0,0.00022191,2]
[357455519,1744073445802,-1890.65,0.00022191,2]
[357455520,1744073445812,-500.0,0.00022191,2]
[357455521,1744073445823,-500.0,0.00022191,2]
[357455522,1744073445833,-1098.37,0.00022191,2]
[357455523,1744073445843,-500.0,0.00022191,2]
[357455524,1744073445854,-153.0,0.00022279,2]
[357455525,1744073445866,-207.4,0.00022373,2]
[357455527,1744073445876,-594.95,0.00022465,2]
[357455528,1744073445886,-500.0,0.00022465,2]
[357455529,1744073445896,-500.0,0.00022465,2]
[357455531,1744073445906,-500.0,0.00022465,2]
[357455532,1744073445917,-507.25,0.00022465,2]
[357455533,1744073445929,-500.0,0.00022465,2]
[357455534,1744073445940,-500.0,0.00022465,2]
[357455535,1744073445951,-500.0,0.00022465,2]
[357455537,1744073445963,-500.0,0.00022465,2]
[357455538,1744073445974,-500.0,0.00022465,2]
[357455539,1744073445984,-500.0,0.00022465,2]
[357455540,1744073445994,-537.79890723,0.00022465,2]
[357455541,1744073446006,-555.55333302,0.00022465,2]
[357455542,1744073446016,-1284.95,0.00022465,2]
[357455543,1744073446026,-500.0,0.00022465,2]
[357455544,1744073446037,-500.0,0.00022465,2]
[357455545,1744073446046,-500.0,0.00022465,2]
[357455546,1744073446057,-519.3,0.00022465,2]
[357455547,1744073446067,-500.0,0.00022465,2]
[357455548,1744073446077,-500.0,0.00022465,2]
[357455549,1744073446088,-500.0,0.00022465,2]
[357455550,1744073446099,-515.54,0.00022465,2]
[357455551,1744073446110,-774.11,0.00022465,2]
[357455553,1744073446121,-549.74689156,0.00022465,2]
[357455554,1744073446132,-500.0,0.00022465,2]
[357455555,1744073446142,-500.0,0.00022465,2]
[357455556,1744073446152,-512.98199712,0.00022465,2]
[357455557,1744073446163,-500.0,0.00022465,2]
[357455558,1744073446173,-500.0,0.00022465,2]
[357455559,1744073446183,-500.0,0.00022465,2]
[357455560,1744073446193,-500.0,0.00022465,2]
[357455561,1744073446203,-500.0,0.00022465,2]
[357455562,1744073446212,-500.0,0.00022465,2]
[357455563,1744073446223,-500.0,0.00022465,2]
[357455565,1744073446234,-500.0,0.00022465,2]
[357455566,1744073446244,-500.0,0.00022465,2]
[357455567,1744073446255,-500.0,0.00022465,2]
[357455568,1744073446266,-500.0,0.00022465,2]
[357455569,1744073446277,-500.0,0.00022465,2]
[357455570,1744073446287,-500.0,0.00022465,2]
[357455571,1744073446298,-500.0,0.00022465,2]
[357455572,1744073446308,-500.0,0.00022465,2]
[357455573,1744073446318,-500.0,0.00022465,2]
[357455574,1744073446329,-500.0,0.00022465,2]
[357455576,1744073446341,-500.0,0.00022465,2]
[357455577,1744073446351,-500.0,0.00022465,2]
[357455578,1744073446362,-500.0,0.00022465,2]
[357455579,1744073446379,-500.0,0.00022465,2]
[357455580,1744073446393,-500.0,0.00022465,2]
[357455581,1744073446403,-500.0,0.00022465,2]
[357455582,1744073446414,-500.0,0.00022465,2]
[357455583,1744073446424,-500.0,0.00022465,2]
[357455584,1744073446434,-500.0,0.00022465,2]
[357455585,1744073446445,-637.58,0.00022465,2]
[357455586,1744073446456,-500.0,0.00022465,2]
[357455587,1744073446468,-619.99,0.00022465,2]
[357455588,1744073446484,-500.0,0.00022465,2]
[357455589,1744073446496,-500.0,0.00022465,2]
[357455590,1744073446510,-500.0,0.00022465,2]
[357455591,1744073446523,-500.0,0.00022465,2]
[357455592,1744073446535,-500.0,0.00022465,2]
[357455593,1744073446546,-500.0,0.00022465,2]
[357455594,1744073446556,-500.0,0.00022465,2]
[357455595,1744073446566,-500.0,0.00022465,2]
[357455596,1744073446576,-551.52,0.00022465,2]
[357455597,1744073446586,-500.0,0.00022465,2]
[357455598,1744073446597,-500.0,0.00022465,2]
[357455599,1744073446607,-762.18,0.00022465,2]
[357455600,1744073446618,-500.0,0.00022465,2]
[357455601,1744073446628,-500.0,0.00022465,2]
[357455602,1744073446640,-610.61,0.00022465,2]
[357455603,1744073446650,-500.0,0.00022465,2]
[357455604,1744073446660,-500.0,0.00022465,2]
[357455605,1744073446671,-798.41,0.00022465,2]
[357455606,1744073446681,-666.56,0.00022465,2]
[357455607,1744073446691,-500.0,0.00022465,2]
[357455608,1744073446702,-568.42,0.00022465,2]
[357455609,1744073446712,-500.0,0.00022465,2]
[357455610,1744073446722,-500.0,0.00022465,2]
[357455611,1744073446732,-500.0,0.00022465,2]
[357455612,1744073446743,-500.0,0.00022465,2]
[357455613,1744073446753,-595.32,0.00022465,2]
[357455614,1744073446765,-500.0,0.00022465,2]
[357455615,1744073446775,-1478.81,0.00022465,2]
[357455616,1744073446786,-500.0,0.00022465,2]
[357455617,1744073446796,-500.0,0.00022465,2]
[357455618,1744073446806,-523.17,0.00022465,2]
[357455619,1744073446817,-500.0,0.00022465,2]
[357455620,1744073446827,-500.0,0.00022465,2]
[357455621,1744073446837,-500.0,0.00022465,2]
[357455622,1744073446847,-1266.69,0.00022465,2]
[357455623,1744073446858,-500.0,0.00022465,2]
[357455624,1744073446868,-500.0,0.00022465,2]
[357455626,1744073446878,-500.0,0.00022465,2]
[357455627,1744073446889,-1197.93,0.00022465,2]
[357455629,1744073446899,-500.0,0.00022465,2]
[357455631,1744073446909,-500.0,0.00022465,2]
[357455632,1744073446921,-528.61,0.00022465,2]
[357455633,1744073446936,-878.01,0.00022465,2]
[357455634,1744073446946,-500.0,0.00022465,2]
[357455635,1744073446956,-500.0,0.00022465,2]
[357455636,1744073446967,-500.0,0.00022465,2]
[357455637,1744073446978,-500.0,0.00022465,2]
[357455638,1744073446988,-500.0,0.00022465,2]
[357455639,1744073446998,-262.72969103,0.00022465,2]
[357455640,1744073447181,-500.0,0.00022465,2]
[357455641,1744073447191,-500.0,0.00022465,2]
[357455642,1744073447203,-500.0,0.00022465,2]
[357455643,1744073447224,-993.51,0.00022465,2]
[357455644,1744073447237,-1465.53,0.00022465,2]
[357455645,1744073447248,-500.0,0.00022465,2]
[357455646,1744073447259,-500.0,0.00022465,2]
[357455647,1744073447269,-500.0,0.00022465,2]
[357455648,1744073447279,-500.0,0.00022465,2]
[357455649,1744073447290,-155.45876389,0.00022465,2]
[357455650,1744073447300,-500.0,0.00022465,2]
[357455651,1744073447311,-500.0,0.00022465,2]
[357455652,1744073447322,-500.0,0.00022465,2]
[357455653,1744073447333,-545.8,0.00022465,2]
[357455654,1744073447343,-500.0,0.00022465,2]
[357455655,1744073447354,-500.0,0.00022465,2]
[357455656,1744073447365,-500.0,0.00022465,2]
[357455657,1744073447375,-500.0,0.00022465,2]
[357455658,1744073447387,-500.0,0.00022465,2]
[357455659,1744073447398,-689.47,0.00022465,2]
[357455660,1744073447408,-500.0,0.00022465,2]
[357455661,1744073447419,-591.84,0.00022465,2]
[357455662,1744073447429,-500.0,0.00022465,2]
[357455663,1744073447440,-500.0,0.00022465,2]
[357455664,1744073447450,-1000.21,0.00022465,2]
[357455665,1744073447460,-362.86088969,0.00022465,2]
[357455666,1744073447470,-500.0,0.00022465,2]
[357455667,1744073447480,-500.0,0.00022465,2]
[357455668,1744073447491,-1104.26,0.00022465,2]
[357455669,1744073447501,-518.15,0.00022465,2]
[357455670,1744073447511,-500.0,0.00022465,2]
[357455671,1744073447522,-500.0,0.00022465,2]
[357455672,1744073447532,-500.0,0.00022465,2]
[357455673,1744073447542,-500.0,0.00022465,2]
[357455674,1744073447552,-500.0,0.00022465,2]
[357455675,1744073447563,-500.0,0.00022465,2]
[357455676,1744073447572,-500.0,0.00022465,2]
[357455677,1744073447582,-500.0,0.00022465,2]
[357455678,1744073447593,-500.0,0.00022465,2]
[357455679,1744073447603,-500.0,0.00022465,2]
[357455680,1744073447613,-500.0,0.00022465,2]
[357455681,1744073447623,-500.0,0.00022465,2]
[357455682,1744073447635,-500.0,0.00022465,2]
[357455683,1744073447645,-500.0,0.00022465,2]
[357455684,1744073447655,-500.0,0.00022465,2]
[357455685,1744073447665,-500.0,0.00022465,2]
[357455686,1744073447675,-500.0,0.00022465,2]
[357455687,1744073447685,-500.0,0.00022465,2]
[357455688,1744073447695,-1404.5,0.00022465,2]
[357455689,1744073447705,-522.25,0.00022465,2]
[357455690,1744073447715,-500.0,0.00022465,2]
[357455691,1744073447725,-1550.56,0.00022465,2]
[357455692,1744073447735,-500.0,0.00022465,2]
[357455693,1744073447745,-500.0,0.00022465,2]
[357455694,1744073447755,-559.21,0.00022465,2]
[357455695,1744073447766,-1304.88,0.00022465,2]
[357455696,1744073447777,-500.0,0.00022465,2]
[357455697,1744073447787,-2906.86,0.00022465,2]
[357455698,1744073447797,-567.46,0.00022465,2]
[357455699,1744073447806,-636.08,0.00022465,2]
[357455700,1744073447816,-500.0,0.00022465,2]
[357455701,1744073447826,-500.0,0.00022465,2]
[357455702,1744073447837,-1332.6,0.00022465,2]
[357455703,1744073447846,-500.0,0.00022465,2]
[357455704,1744073447856,-500.0,0.00022465,2]
[357455705,1744073447866,-500.0,0.00022465,2]
[357455706,1744073447876,-500.0,0.00022465,2]
[357455707,1744073447886,-2435.82,0.00022465,2]
[357455708,1744073447897,-564.44,0.00022465,2]
[357455709,1744073447907,-816.67,0.00022465,2]
[357455710,1744073447917,-500.0,0.00022465,2]
[357455711,1744073447932,-500.0,0.00022465,2]
[357455712,1744073447942,-2284.41,0.00022465,2]
[357455713,1744073447952,-500.0,0.00022465,2]
[357455714,1744073447962,-539.99,0.00022465,2]